bitfinex/quotes_SOLUSD_20260226
["timestamp","ask_amount","ask_price","bid_price","bid_amount"]
[1772106688144,1.72021998,86.928,86.89,3.67306319]
[1772106688438,1.72021998,86.899,86.846,1.69492466]
[1772106688644,3.67306319,86.9,86.83,40.30864908]
[1772106688645,1.72021998,86.869,86.838,1.69492466]
[1772106688936,1.72021998,86.869,86.84,5.36798785]
[1772106689148,1.72021998,86.869,86.85,3.67306319]
[1772106689354,1.72021998,86.877,86.85,3.67306319]
[1772106689563,1.72021998,86.875,86.84,5.36798785]
[1772106690841,1.72021998,86.875,86.84,3.67306319]
[1772106691036,1.72021998,86.875,86.85,3.67306319]
[1772106691839,1.72021998,86.886,86.86,3.67306319]
[1772106694141,1.72021998,86.884,86.86,3.67306319]
[1772106696442,1.72021998,86.882,86.86,3.67306319]
[1772106698659,1.7003785,86.88,86.86,3.67306319]
[1772106700763,1.7003785,86.878,86.851,1.67109756]
[1772106702258,1.7003785,86.878,86.852,1.67109756]
[1772106702956,1.7003785,86.878,86.86,3.67306319]
[1772106703458,1.7003785,86.887,86.861,1.67109756]
[1772106703659,1.81708651,86.895,86.88,3.67306319]
[1772106704671,1.81708651,86.895,86.87,3.67306319]
[1772106704872,1.81708651,86.895,86.871,11.51132138]
[1772106706170,1.81708651,86.908,86.88,3.67306319]
[1772106706355,1.81708651,86.921,86.9,3.67306319]
[1772106706561,1.81708651,86.921,86.88,3.67306319]
[1772106706856,11.50483202,86.92,86.9,3.67306319]
[1772106707062,13.32191853,86.92,86.9,3.67306319]
[1772106710470,1.81708651,86.933,86.91,3.67306319]
[1772106710671,1.81708651,86.933,86.9,3.67306319]
[1772106711256,1.81708651,86.933,86.9,3.66465562]
[1772106713757,1.81708651,86.931,86.9,3.66465562]
[1772106714971,1.81708651,86.931,86.91,3.66465562]
[1772106715676,1.81708651,86.938,86.9,3.66465562]
[1772106715970,1.81708651,86.938,86.91,3.66465562]
[1772106717176,1.81708651,86.938,86.9,3.66465562]
[1772106717868,1.81708651,86.936,86.9,3.66465562]
[1772106719081,40.25996433,86.935,86.9,3.66465562]
[1772106719280,1.81708651,86.934,86.9,3.66465562]
[1772106719678,1.81708651,86.934,86.91,3.66465562]
[1772106722287,1.81708651,86.932,86.91,3.66465562]
[1772106724583,11.50337624,86.931,86.91,3.66465562]
[1772106724885,1.81708651,86.93,86.9,3.66465562]
[1772106727285,1.81708651,86.928,86.9,3.66465562]
[1772106727583,1.81708651,86.928,86.89,3.66465562]
[1772106727769,1.81708651,86.928,86.9,3.66465562]
[1772106729274,1.81708651,86.926,86.9,3.66465562]
[1772106729469,1.81708651,86.926,86.91,3.66465562]
[1772106732170,11.50417026,86.925,86.91,3.66465562]
[1772106733168,13.32125677,86.925,86.91,3.66465562]
[1772106733769,1.81708651,86.931,86.91,3.66465562]
[1772106733986,11.50320014,86.933,86.92,3.66465562]
[1772106735079,11.50320014,86.933,86.911,0.02627395]
[1772106735279,1.81708651,86.932,86.911,0.02627395]
[1772106735473,1.81708651,86.932,86.91,3.66465562]
[1772106739392,1.81708651,86.93,86.91,3.66465562]
[1772106740382,1.81708651,86.93,86.9,3.66465562]
[1772106741597,1.81708651,86.928,86.9,3.66465562]
[1772106741777,1.81708651,86.928,86.9,3.69789178]
[1772106742095,1.81708651,86.928,86.9,3.66465562]
[1772106742298,1.81708651,86.928,86.9,3.69789178]
[1772106743785,1.81708651,86.926,86.901,0.03487847]
[1772106744498,1.81708651,86.943,86.911,0.03568551]
[1772106744677,1.81708651,86.943,86.92,3.66465562]
[1772106744877,1.81708651,86.943,86.91,3.66465562]
[1772106746011,1.81708651,86.927,86.89,3.66465562]
[1772106747801,40.26876523,86.916,86.88,3.66465562]
[1772106748001,1.81708651,86.915,86.88,3.66465562]
[1772106748498,1.81708651,86.915,86.881,11.50999643]
[1772106750010,1.81708651,86.92,86.9,3.66465562]
[1772106750304,3.66465562,86.94,86.901,0.04033675]
[1772106750305,1.81708651,86.926,86.901,0.04033675]
[1772106750512,1.81708651,86.926,86.91,3.66465562]
[1772106751006,1.81708651,86.926,86.856,3.2]
[1772106751007,1.81708651,86.917,86.861,0.0410811]
[1772106751194,1.81708651,86.899,86.861,0.0410811]
[1772106752898,1.81708651,86.897,86.861,0.0410811]
[1772106757216,1.81708651,86.895,86.862,0.04605753]
[1772106757417,1.81708651,86.895,86.87,3.66465562]
[1772106757722,1.81708651,86.895,86.862,0.04605753]
[1772106760204,1.81708651,86.893,86.862,0.04605753]
[1772106760594,28.76387493,86.915,86.871,0.04872566]
[1772106760815,1.81708651,86.913,86.89,3.66465562]
[1772106762304,1.81708651,86.909,86.876,11.51063696]
[1772106765604,1.81708651,86.907,86.88,3.66465562]
[1772106768106,1.81708651,86.905,86.871,0.05310824]
[1772106768431,1.81708651,86.905,86.88,3.66465562]
[1772106770223,1.81708651,86.903,86.87,3.71895229]
[1772106770405,1.81708651,86.903,86.88,3.66465562]
[1772106771228,1.81708651,86.903,86.88,3.66678105]
[1772106771525,1.81708651,86.901,86.88,3.66678105]
[1772106773230,1.81708651,86.901,86.88,15.23282237]
[1772106773708,1.81708651,86.907,86.881,0.05659273]
[1772106775422,1.81708651,86.906,86.881,0.05659273]
[1772106778630,1.81708651,86.905,86.881,0.05659273]
[1772106780229,1.81708651,86.905,86.88,15.17679375]
[1772106780423,1.81708651,86.905,86.881,0.06036416]
[1772106782811,11.50639439,86.909,86.881,0.06036416]
[1772106783011,1.81708651,86.908,86.881,0.06036416]
[1772106783512,1.81708651,86.922,86.901,0.06238623]
[1772106783711,1.81708651,86.937,86.901,0.06238623]
[1772106783929,1.81708651,86.936,86.901,0.06238623]
[1772106784742,1.41708651,86.936,86.901,0.06238623]
[1772106786235,11.50284695,86.935,86.91,3.66678105]
[1772106786436,11.50284695,86.935,86.911,0.46336275]
[1772106786622,1.75172596,86.934,86.91,3.66678105]
[1772106788242,1.75172596,86.946,86.913,0.46431697]
[1772106788735,1.75172596,86.944,86.911,0.46478588]
[1772106790648,1.75172596,86.942,86.911,0.46478588]
[1772106794047,1.75172596,86.94,86.912,11.97328678]
[1772106794252,1.75172596,86.94,86.913,0.46739577]
[1772106796449,1.75172596,86.938,86.913,0.46739577]
[1772106797939,1.75172596,86.949,86.921,0.46937781]
[1772106798145,11.50134183,86.947,86.921,0.46937781]
[1772106798345,1.75172596,86.949,86.921,0.46937781]
[1772106798543,13.25272079,86.949,86.923,0.46937781]
[1772106798743,0.2,86.95,86.931,0.46985917]
[1772106799658,1.95172596,86.95,86.931,0.46985917]
[1772106799853,1.75172596,86.949,86.923,0.470335]
[1772106801235,1.75172596,86.947,86.925,0.47080537]
[1772106804093,13.25311762,86.946,86.925,0.47080537]
[1772106807989,11.50139166,86.946,86.925,0.47080537]
[1772106808196,1.82764183,86.945,86.925,0.47080537]
[1772106809306,1.82764183,86.945,86.93,3.66678105]
[1772106810416,1.82764183,86.939,86.9,4.14200298]
[1772106810711,1.82764183,86.939,86.901,0.47522193]
[1772106813614,1.82764183,86.937,86.902,11.50721502]
[1772106813791,1.82764183,86.937,86.903,0.47685055]
[1772106814802,1.82764183,86.937,86.91,3.66678105]
[1772106815806,1.82764183,86.935,86.91,3.66678105]
[1772106820224,1.70927906,86.933,86.91,4.14630672]
[1772106820425,1.70927906,86.919,86.85,1.68040842]
[1772106820621,7.3335621,86.92,86.85,1.68040842]
[1772106820622,1.70927906,86.879,86.85,1.68040842]
[1772106820815,1.70927906,86.879,86.851,1.68040842]
[1772106821213,5.36086188,86.899,86.861,1.68040842]
[1772106821417,1.70927906,86.898,86.861,1.68040842]
[1772106822113,1.70927906,86.898,86.871,1.68040842]
[1772106822312,11.50787714,86.897,86.871,1.68040842]
[1772106822520,1.70927906,86.896,86.871,1.68040842]
[1772106824524,1.70927906,86.903,86.871,1.68040842]
[1772106825614,1.70927906,86.903,86.873,1.68040842]
[1772106826545,1.70927906,86.901,86.873,1.68040842]
[1772106828710,11.50747986,86.9,86.874,11.51092386]
[1772106828928,5.36086188,86.917,86.874,11.51092386]
[1772106828929,11.50669214,86.906,86.881,1.68040842]
[1772106829314,1.70927906,86.905,86.881,1.68040842]
[1772106829519,1.70927906,86.899,86.871,1.68040842]
[1772106830613,1.70927906,86.899,86.872,1.68040842]
[1772106831026,1.70927906,86.905,86.875,1.68040842]
[1772106831211,1.70927906,86.905,86.881,1.68040842]
[1772106831930,1.70927906,86.911,86.881,1.68040842]
[1772106832430,1.70927906,86.909,86.881,1.68040842]
[1772106833308,11.50642058,86.908,86.883,1.68040842]
[1772106833825,1.70927906,86.915,86.883,1.68040842]
[1772106835507,11.50562625,86.914,86.883,1.68040842]
[1772106835712,1.70927906,86.913,86.883,1.68040842]
[1772106835918,1.70927906,86.913,86.885,1.87013628]
[1772106836118,13.28203772,86.919,86.891,1.87013628]
[1772106837521,13.28203772,86.919,86.893,1.87013628]
[1772106838136,1.77706711,86.918,86.893,1.87013628]
[1772106838937,1.77706711,86.918,86.887,1.87013628]
[1772106842237,1.77706711,86.916,86.88,3.6667315]
[1772106842443,1.77706711,86.899,86.868,1.87013628]
[1772106843455,1.77706711,86.897,86.87,1.87013628]
[1772106843825,1.77706711,86.897,86.87,5.53686778]
[1772106844027,1.77706711,86.897,86.871,1.87013628]
[1772106844546,1.77706711,86.895,86.871,1.87013628]
[1772106847045,1.77706711,86.895,86.873,1.87013628]
[1772106848023,1.77706711,86.909,86.873,1.87013628]
[1772106848225,1.77706711,86.918,86.891,1.87013628]
[1772106849043,1.77706711,86.916,86.891,1.87013628]
[1772106850245,1.77706711,86.929,86.901,1.87013628]
[1772106850548,1.77706711,86.928,86.901,1.87013628]
[1772106851249,1.77706711,86.926,86.901,1.87013628]
[1772106852944,11.50390557,86.927,86.903,1.87013628]
[1772106853143,1.77706711,86.932,86.912,11.50589101]
[1772106853355,13.28001521,86.935,86.913,1.87013628]
[1772106853529,1.77706711,86.934,86.913,1.87013628]
[1772106855354,1.77706711,86.934,86.91,3.6667315]
[1772106855355,11.50311159,86.933,86.91,3.6667315]
[1772106855655,1.77706711,86.932,86.91,3.6667315]
[1772106856350,1.77706711,86.932,86.901,1.87013628]
[1772106856933,1.77706711,86.932,86.902,1.87013628]
[1772106857955,1.77706711,86.93,86.91,5.53686778]
[1772106859136,1.77706711,86.93,86.91,1.87013628]
[1772106859760,3.6667315,86.94,86.9,3.6667315]
[1772106859761,1.77706711,86.928,86.901,1.87013628]
[1772106861161,1.77706711,86.919,86.876,1.87013628]
[1772106861364,1.77706711,86.909,86.876,11.51065887]
[1772106861736,5.36086188,86.906,86.877,1.87013628]
[1772106862037,1.77706711,86.916,86.881,1.87013628]
[1772106862638,1.77706711,86.909,86.876,11.51065887]
[1772106862858,1.77706711,86.909,86.875,1.87013628]
[1772106863359,1.77706711,86.907,86.876,1.87013628]
[1772106865149,1.77706711,86.905,86.878,1.87013628]
[1772106866960,1.72002948,86.911,86.882,11.50986395]
[1772106867141,1.72002948,86.911,86.883,1.80108592]
[1772106867335,1.72002948,86.91,86.883,1.80108592]
[1772106868456,1.72002948,86.91,86.884,11.509599]
[1772106868662,1.72002948,86.91,86.885,1.80108592]
[1772106869961,1.72002948,86.908,86.885,1.80108592]
[1772106872067,1.72002948,86.915,86.887,1.80108592]
[1772106874166,11.50496439,86.919,86.887,1.80108592]
[1772106874167,11.50562625,86.914,86.887,1.80108592]
[1772106874470,1.72002948,86.913,86.887,1.80108592]
[1772106875357,1.72002948,86.911,86.887,1.80108592]
[1772106877276,1.75767737,86.899,86.875,1.82242391]
[1772106877448,1.75767737,86.899,86.876,11.51065887]
[1772106877650,1.75767737,86.899,86.877,1.82242391]
[1772106878249,11.50721182,86.903,86.877,1.82242391]
[1772106879569,11.50663572,86.907,86.881,1.82242391]
[1772106880559,1.75767737,86.91,86.881,1.82242391]
[1772106881074,1.75767737,86.919,86.891,1.82242391]
[1772106881252,1.75767737,86.925,86.891,1.82242391]
[1772106882275,1.75767737,86.923,86.893,1.82242391]
[1772106884483,11.50456731,86.922,86.895,1.82242391]
[1772106884864,1.75767737,86.921,86.895,1.82242391]
[1772106885479,1.75767737,86.921,86.897,1.82242391]
[1772106886779,1.75767737,86.919,86.9,3.6667315]
[1772106887076,1.75767737,86.919,86.901,1.82242391]
[1772106891477,1.75767737,86.917,86.896,1.82242391]
[1772106893280,1.75767737,86.917,86.898,1.82242391]
[1772106899075,1.75767737,86.917,86.9,3.66534726]
[1772106899278,1.75767737,86.917,86.901,1.85463275]
[1772106900482,1.75767737,86.917,86.902,13.36184777]
[1772106900681,5.36086188,86.945,86.902,13.36184777]
[1772106900682,1.86233387,86.953,86.911,1.85463275]
[1772106900873,1.86233387,86.972,86.941,1.85463275]
[1772106901189,1.86233387,86.972,86.951,1.85463275]
[1772106901567,1.86233387,86.972,86.941,1.85463275]
[1772106902365,1.86233387,86.972,86.951,1.85463275]
[1772106903181,1.86233387,86.97,86.951,1.85463275]
[1772106903885,1.86233387,86.97,86.953,1.85463275]
[1772106904580,1.86233387,86.975,86.96,3.66534726]
[1772106905275,1.86233387,86.984,86.961,1.85463275]
[1772106905478,1.86233387,86.968,86.94,3.66534726]
[1772106906786,1.86233387,86.966,86.94,3.66534726]
[1772106907166,1.86233387,86.966,86.94,5.51998001]
[1772106907365,1.86233387,86.966,86.95,3.66534726]
[1772106909082,11.49814697,86.971,86.951,1.85463275]
[1772106909275,1.86233387,86.97,86.951,1.85463275]
[1772106909471,1.86233387,86.97,86.95,15.16618795]
[1772106909676,1.86233387,86.97,86.96,3.66534726]
[1772106910075,11.49744892,86.976,86.951,1.85463275]
[1772106910278,1.86233387,86.975,86.951,1.85463275]
[1772106910990,1.86233387,86.975,86.94,3.66534726]
[1772106911297,1.86233387,86.973,86.94,3.66534726]
[1772106912565,1.86233387,86.971,86.94,3.66534726]
[1772106912870,1.86233387,86.967,86.938,1.85463275]
[1772106914184,1.86233387,86.965,86.938,1.85463275]
[1772106915284,1.86233387,86.965,86.94,3.66534726]
[1772106915493,1.86233387,86.965,86.94,5.51998001]
[1772106915697,1.86233387,86.965,86.941,1.85463275]
[1772106915883,1.86233387,86.959,86.924,1.85463275]
[1772106916072,1.86233387,86.957,86.924,1.85463275]
[1772106916392,1.86233387,86.947,86.911,1.85463275]
[1772106919692,1.86233387,86.945,86.912,13.36052376]
[1772106920693,1.86233387,86.945,86.913,1.85463275]
[1772106922104,1.86233387,86.954,86.921,1.85463275]
[1772106922979,1.86233387,86.947,86.911,1.85463275]
[1772106923685,1.86233387,86.947,86.913,1.85463275]
[1772106924585,1.86233387,86.938,86.913,1.85463275]
[1772106925198,1.86233387,86.954,86.931,1.85463275]
[1772106925404,5.36086188,86.966,86.914,11.50562625]
[1772106925405,11.498837,86.966,86.941,1.85463275]
[1772106925803,1.86233387,86.969,86.941,1.85463275]
[1772106926804,1.86233387,86.969,86.942,11.50192082]
[1772106927004,1.86233387,86.969,86.943,1.8644532]
[1772106930998,1.86233387,86.969,86.945,1.8644532]
[1772106931491,1.75529445,86.979,86.95,3.66534726]
[1772106931686,1.75529445,86.987,86.951,1.8644532]
[1772106934307,1.75529445,86.987,86.95,3.66534726]
[1772106934308,1.75529445,86.985,86.953,1.8644532]
[1772106934710,1.75529445,86.985,86.948,11.50105025]
[1772106934711,1.75529445,86.979,86.949,1.8644532]
[1772106936313,40.23635987,86.986,86.951,1.8644532]
[1772106936314,1.75529445,86.977,86.951,1.8644532]
[1772106937908,11.49742457,86.976,86.951,1.8644532]
[1772106938213,1.88337886,86.975,86.951,1.8644532]
[1772106940912,1.88337886,86.969,86.937,1.85272202]
[1772106941210,1.88337886,86.969,86.912,3.2]
[1772106941211,1.88337886,86.959,86.922,1.85272202]
[1772106942409,1.88337886,86.957,86.922,1.85272202]
[1772106943110,1.88337886,86.955,86.924,1.85272202]
[1772106943303,1.88337886,86.955,86.931,1.85272202]
[1772106945615,1.88337886,86.961,86.933,1.85272202]
[1772106947609,1.88337886,86.961,86.935,1.85272202]
[1772106950305,1.88337886,86.959,86.937,1.85272202]
[1772106952311,1.88337886,86.965,86.941,1.85272202]
[1772106954319,1.88337886,86.959,86.929,11.50351611]
[1772106954522,1.88337886,86.959,86.93,1.85272202]
[1772106955120,1.88337886,86.959,86.931,1.85272202]
[1772106956323,1.93553497,86.957,86.933,1.85776729]
[1772106959150,1.93553497,86.957,86.934,11.50297927]
[1772106959322,1.93553497,86.957,86.935,1.85776729]
[1772106960925,13.43556017,86.957,86.935,1.85776729]
[1772106961129,1.93553497,86.956,86.935,1.85776729]
[1772106961609,1.93553497,86.949,86.915,11.50541623]
[1772106962020,1.93553497,86.949,86.915,13.36318352]
[1772106962202,1.93553497,86.949,86.916,1.85776729]
[1772106963422,1.93553497,86.939,86.916,1.85776729]
[1772106963621,1.93553497,86.937,86.91,1.85776729]
[1772106967417,1.93553497,86.935,86.901,1.85776729]
[1772106969712,5.36086188,86.947,86.92,3.6618994]
[1772106969922,11.50070351,86.952,86.931,1.85776729]
[1772106970132,1.93553497,86.951,86.931,1.85776729]
[1772106971124,1.93553497,86.947,86.917,1.85776729]
[1772106971937,1.93553497,86.945,86.917,1.85776729]
[1772106973533,1.93553497,86.943,86.917,1.85776729]
[1772106974233,1.93553497,86.939,86.9,3.6618994]
[1772106974536,1.93553497,86.939,86.905,1.85776729]
[1772106977246,1.93553497,86.937,86.907,1.85776729]
[1772106977849,1.93553497,86.919,86.892,1.85776729]
[1772106978338,1.93553497,86.928,86.894,11.50827444]
[1772106978545,11.50336837,86.932,86.901,1.85776729]
[1772106979441,11.50336837,86.932,86.902,11.50721502]
[1772106979643,11.50336837,86.932,86.903,1.85776729]
[1772106980450,11.50336837,86.932,86.902,11.50721502]
[1772106980451,11.50086256,86.95,86.921,1.85776729]
[1772106980648,13.43639753,86.95,86.921,1.85776729]
[1772106980949,1.93553497,86.949,86.921,1.85776729]
[1772106981848,1.93553497,86.947,86.921,1.85776729]
[1772106985754,1.93553497,86.945,86.921,1.85776729]
[1772106991471,11.50165623,86.944,86.921,1.85776729]
[1772106991667,13.43569012,86.944,86.921,1.85776729]
[1772106995767,1.93403389,86.943,86.921,1.85776729]
[1772106997264,11.50192082,86.942,86.921,1.85776729]
[1772106998464,1.93403389,86.943,86.922,1.79252526]
[1772106999558,1.78025216,86.959,86.924,1.79252526]
[1772107000449,1.78025216,86.959,86.931,1.79252526]
[1772107002046,11.4998045,86.958,86.931,13.29583826]
[1772107002362,13.28005666,86.958,86.932,1.79252526]
[1772107003257,11.500069,86.956,86.932,1.79252526]
[1772107007373,1.78025216,86.956,86.932,1.79252526]
[1772107008370,1.78025216,86.954,86.932,1.79252526]
[1772107013074,11.50046576,86.953,86.932,1.79252526]
[1772107013274,1.78025216,86.952,86.932,1.79252526]
[1772107022171,11.50073029,86.951,86.932,1.79252526]
[1772107022494,11.50073029,86.951,86.903,3.2]
[1772107022495,1.86063036,86.939,86.891,1.95531312]
[1772107022663,97.75620751,86.951,86.891,1.95531312]
[1772107022664,1.86063036,86.929,86.891,1.95531312]
[1772107022974,1.86063036,86.919,86.893,1.95531312]
[1772107025686,1.86063036,86.919,86.894,11.50827444]
[1772107025867,1.86063036,86.919,86.895,1.95531312]
[1772107026713,1.86063036,86.919,86.897,1.95531312]
[1772107027992,11.505056,86.919,86.892,1.95531312]
[1772107028197,1.86063036,86.918,86.892,1.95531312]
[1772107029088,1.86063036,86.916,86.892,1.95531312]
[1772107030467,1.86063036,86.916,86.894,1.95531312]
[1772107030670,11.50470772,86.921,86.894,1.95531312]
[1772107031280,1.86063036,86.921,86.896,1.95531312]
[1772107033798,1.86063036,86.921,86.897,11.50787714]
[1772107033987,1.86063036,86.921,86.898,1.95531312]
[1772107035296,1.86063036,86.942,86.911,1.95531312]
[1772107037001,13.36263243,86.942,86.913,1.95531312]
[1772107037380,1.86063036,86.942,86.913,1.95531312]
[1772107038996,1.86063036,86.953,86.921,1.95531312]
[1772107040592,1.86063036,86.953,86.923,1.95531312]
[1772107041185,1.86063036,86.958,86.923,1.95531312]
[1772107041380,1.86063036,86.968,86.931,1.95531312]
[1772107041586,1.86063036,86.966,86.941,1.95531312]
[1772107041902,1.86063036,86.949,86.923,1.95531312]
[1772107042097,1.86063036,86.949,86.912,28.76464878]
[1772107042098,1.86063036,86.949,86.918,13.46038751]
[1772107042298,1.86063036,86.949,86.919,1.95531312]
[1772107042499,1.86063036,86.939,86.914,13.46093311]
[1772107042703,1.86063036,86.939,86.914,1.95531312]
[1772107043100,1.86063036,86.939,86.916,1.95531312]
[1772107044206,1.86063036,86.939,86.917,13.46054224]
[1772107044383,1.86063036,86.939,86.918,1.95531312]
[1772107047088,1.86063036,86.939,86.92,1.93750924]
[1772107050209,1.95854642,86.951,86.922,1.93750924]
[1772107050394,1.95854642,86.95,86.922,1.93750924]
[1772107051806,1.95854642,86.95,86.924,1.93750924]
[1772107055289,1.95854642,86.95,86.926,1.93750924]
[1772107058016,1.95854642,86.95,86.928,1.82084012]
[1772107060104,1.89913371,86.948,86.928,1.82084012]
[1772107062111,1.89913371,86.948,86.929,11.5036409]
[1772107062296,1.89913371,86.948,86.929,13.32448102]
[1772107062495,1.89913371,86.948,86.93,1.82084012]
[1772107063416,1.89913371,86.946,86.914,1.82084012]
[1772107063613,1.89913371,86.946,86.913,11.50575863]
[1772107063614,1.89913371,86.946,86.921,1.82084012]
[1772107064598,1.89913371,86.953,86.923,1.82084012]
[1772107066809,1.89913371,86.953,86.925,1.82084012]
[1772107069423,1.89913371,86.952,86.927,1.82084012]
[1772107070520,1.89913371,86.952,86.929,1.82084012]
[1772107072426,1.89913371,86.95,86.929,1.82084012]
[1772107076427,1.89913371,86.95,86.93,13.39042054]
[1772107076925,1.78946282,86.948,86.926,11.50394823]
[1772107077111,1.78946282,86.948,86.922,1.88691197]
[1772107078624,1.78946282,86.946,86.924,1.88691197]
[1772107082025,1.78946282,86.946,86.926,1.88691197]
[1772107082213,3.66373208,86.95,86.926,1.88691197]
[1772107082933,1.78946282,86.949,86.926,1.88691197]
[1772107083937,1.78946282,86.948,86.928,1.88691197]
[1772107087615,1.78946282,86.948,86.923,11.50433933]
[1772107087616,1.78946282,86.946,86.923,1.88691197]
[1772107090136,1.78946282,86.946,86.923,11.50439273]
[1772107090317,1.78946282,86.946,86.924,1.88691197]
[1772107099346,1.78946282,86.946,86.926,1.88691197]
[1772107100943,1.78946282,86.946,86.928,1.88691197]
[1772107101846,1.78946282,86.966,86.928,1.88691197]
[1772107102233,11.49861441,86.967,86.931,1.88691197]
[1772107102430,3.66373208,86.98,86.931,1.88691197]
[1772107102431,1.78946282,86.969,86.931,1.88691197]
[1772107102646,1.78946282,86.958,86.931,1.88691197]
[1772107102939,1.78946282,86.947,86.919,1.88691197]
[1772107104131,1.78946282,86.945,86.919,1.88691197]
[1772107104449,1.78946282,86.945,86.917,11.50520535]
[1772107105143,1.78946282,86.943,86.918,1.88691197]
[1772107107951,1.78946282,86.943,86.92,1.90003347]
[1772107108336,1.87954228,86.948,86.92,1.90003347]
[1772107110258,1.87954228,86.953,86.922,1.90003347]
[1772107110657,1.87954228,86.951,86.922,1.90003347]
[1772107110865,1.87954228,86.939,86.901,1.90003347]
[1772107111157,1.87954228,86.919,86.891,1.90003347]
[1772107112555,1.87954228,86.919,86.89,3.66373208]
[1772107112556,1.87954228,86.919,86.893,1.90003347]
[1772107114251,1.87954228,86.917,86.893,1.90003347]
[1772107115250,1.87954228,86.915,86.888,11.50899719]
[1772107115557,1.87954228,86.913,86.888,11.50899719]
[1772107116934,1.87954228,86.913,86.888,13.32875987]
[1772107117341,1.78655546,86.921,86.891,1.81976268]
[1772107117547,5.36086188,86.925,86.891,1.81976268]
[1772107117754,5.36086188,86.926,86.891,1.81976268]
[1772107118052,7.14741734,86.926,86.891,1.81976268]
[1772107119460,7.14741734,86.926,86.863,46.04944933]
[1772107119461,1.78655546,86.932,86.901,1.81976268]
[1772107120955,1.78655546,86.931,86.901,1.81976268]
[1772107122747,1.78655546,86.929,86.903,1.81976268]
[1772107124040,1.78655546,86.929,86.905,1.81976268]
[1772107126661,1.78655546,86.929,86.904,11.50695019]
[1772107126662,1.78655546,86.929,86.907,1.81976268]
[1772107126873,1.78655546,86.937,86.911,1.81976268]
[1772107129064,1.78655546,86.937,86.913,1.81976268]
[1772107130254,1.78655546,86.937,86.915,1.81976268]
[1772107132055,1.78655546,86.937,86.906,28.76671346]
[1772107132449,1.78655546,86.937,86.907,1.81976268]
[1772107134168,1.78655546,86.943,86.911,1.81976268]
[1772107134677,1.78655546,86.933,86.911,1.81976268]
[1772107134848,1.78655546,86.933,86.856,57.75589263]
[1772107134849,1.78655546,86.929,86.894,1.81976268]
[1772107135367,1.78655546,86.909,86.881,1.81976268]
[1772107136673,1.78655546,86.909,86.881,13.32975911]
[1772107138072,1.78655546,86.909,86.882,1.87482497]
[1772107138969,1.88350949,86.907,86.872,1.87482497]
[1772107139177,1.88350949,86.899,86.867,13.38660712]
[1772107139361,1.88350949,86.899,86.868,1.87482497]
[1772107140352,1.88350949,86.899,86.871,1.87482497]
[1772107142675,1.88350949,86.898,86.872,11.51118887]
[1772107143179,1.88350949,86.898,86.873,1.87482497]
[1772107144458,1.88350949,86.898,86.874,11.51092386]
[1772107144680,1.88350949,86.898,86.875,1.87482497]
[1772107145180,3.66779497,86.92,86.881,1.87482497]
[1772107146808,16.86510126,86.925,86.883,1.87482497]
[1772107146961,11.50423938,86.925,86.891,1.87482497]
[1772107147284,1.58029003,86.924,86.891,1.87482497]
[1772107147885,1.58034362,86.929,86.901,1.87482497]
[1772107150093,1.58044895,86.927,86.903,1.87482497]
[1772107152578,1.58044895,86.927,86.905,1.87482497]
[1772107155085,1.57447974,86.925,86.905,1.87482497]
[1772107156486,1.57447974,86.925,86.906,13.38151035]
[1772107156788,1.57447974,86.925,86.907,1.87482497]
[1772107163673,1.56456675,86.945,86.909,1.87482497]
[1772107163880,1.56456675,86.956,86.921,1.87482497]
[1772107167097,40.2446877,86.968,86.923,1.81438677]
[1772107167098,1.56048118,86.954,86.923,1.81438677]
[1772107167500,1.56048118,86.939,86.901,1.81438677]
[1772107167795,1.56048118,86.929,86.901,1.81438677]
[1772107168900,1.55850811,86.927,86.903,1.81438677]
[1772107171492,1.55850811,86.927,86.905,1.81438677]
[1772107171876,1.55563267,86.925,86.905,1.81438677]
[1772107176101,1.55563267,86.925,86.907,1.81438677]
[1772107178604,1.55563267,86.925,86.862,3.2]
[1772107178605,1.54929849,86.923,86.891,1.93602678]
[1772107180806,1.54673677,86.921,86.891,11.50857491]
[1772107180984,1.54673677,86.921,86.892,1.93602678]
[1772107182815,1.54507762,86.919,86.892,1.93602678]
[1772107183108,1.54507762,86.919,86.894,1.93602678]
[1772107183311,1.54507762,86.919,86.9,5.60382175]
[1772107184714,1.54507762,86.919,86.9,1.93602678]
[1772107188208,11.50509675,86.918,86.9,1.93602678]
[1772107188511,1.54109365,86.917,86.9,1.93602678]
[1772107195618,1.53588891,86.915,86.9,1.93602678]
[1772107195916,1.53588891,86.915,86.893,11.50840689]
[1772107196113,1.94546433,86.958,86.911,0.4106613]
[1772107196415,104.1,86.959,86.91,3.66779497]
[1772107196416,1.94546433,86.949,86.91,3.66779497]
[1772107196720,1.94546433,86.949,86.911,0.4106613]
[1772107197721,1.94546433,86.948,86.921,0.40996774]
[1772107198804,1.94546433,86.948,86.923,0.40860444]
[1772107200320,1.94546433,86.956,86.931,0.40793451]
[1772107200500,104.1,86.994,86.922,11.50456731]
[1772107200501,1.94546433,86.968,86.95,3.66304622]
[1772107200706,1.94546433,86.968,86.951,0.40727227]
[1772107200909,11.49844848,86.969,86.951,0.40727227]
[1772107201418,11.49844848,86.969,86.95,3.66304622]
[1772107201419,1.94546433,86.968,86.95,3.66304622]
[1772107202418,1.94546433,86.966,86.95,3.66304622]